bitfinex/quotes_ETHUSD_20250430
["timestamp","ask_amount","ask_price","bid_price","bid_amount"]
[1745991481213,6.81376242,1805.8,1805.7,1.3803]
[1745991481372,0.74514176,1805.8,1805.7,1.3803]
[1745991481708,0.74514176,1805.8,1805.7,7.62980422]
[1745991481882,0.43707444,1805.8,1805.7,8.94659883]
[1745991482084,3.0,1806.2,1805.8,0.55]
[1745991482282,3.0,1806.2,1805.9,0.7678]
[1745991482483,8.53649878,1806.2,1805.9,0.7678]
[1745991482804,0.30839219,1806.1,1805.9,0.7678]
[1745991483484,5.84520182,1806.1,1805.9,0.7678]
[1745991483808,0.30839219,1806.0,1805.9,1.3178]
[1745991484612,0.30175487,1806.0,1805.9,1.3178]
[1745991486606,5.83890052,1806.0,1805.7,5.354]
[1745991486811,5.83890052,1806.0,1805.8,0.55]
[1745991487177,0.30175487,1806.0,1805.8,0.55]
[1745991487373,8.53651271,1806.2,1806.0,0.55]
[1745991490525,5.53679198,1806.1,1806.0,0.55]
[1745991490727,5.53679198,1806.1,1805.8,0.55]
[1745991490728,5.53722971,1806.0,1805.8,0.55]
[1745991491226,11.60585037,1806.0,1805.8,0.55]
[1745991492327,6.06862066,1806.0,1805.8,0.55]
[1745991492693,6.06862066,1806.0,1805.8,0.8063]
[1745991495438,0.44347962,1805.9,1805.8,1.3563]
[1745991497339,0.43719453,1805.9,1805.8,1.3563]
[1745991503952,0.74555926,1805.9,1805.8,1.3563]
[1745991504448,0.74555926,1805.9,1805.8,0.55]
[1745991509958,0.73781022,1805.9,1805.8,0.55]
[1745991517552,6.27548905,1805.9,1805.7,0.55]
[1745991517754,7.06378905,1805.9,1805.7,0.55]
[1745991518153,0.30836473,1805.8,1805.7,0.55]
[1745991518359,0.75052929,1805.8,1805.7,0.55]
[1745991524679,0.75052929,1805.8,1805.3,5.3385]
[1745991524680,5.53834923,1805.6,1805.3,5.3385]
[1745991524878,0.44100022,1805.5,1805.3,5.3385]
[1745991525180,0.30836473,1805.4,1805.3,5.3385]
[1745991525391,0.30836473,1805.4,1805.3,9.61103775]
[1745991525992,0.74936495,1805.4,1805.3,9.61103775]
[1745991526154,0.30836473,1805.5,1805.3,9.61103775]
[1745991526358,0.44100022,1805.4,1805.3,10.57214153]
[1745991527289,6.06862066,1805.6,1805.3,10.57214153]
[1745991527485,0.44100022,1805.4,1805.3,6.84960378]
[1745991527690,6.06862066,1805.6,1805.3,6.84960378]
[1745991527988,0.44100022,1805.4,1805.3,6.84960378]
[1745991528283,6.06862066,1805.6,1805.3,6.84960378]
[1745991528447,0.44100022,1805.4,1805.3,6.84960378]
[1745991529860,11.60695999,1805.6,1805.3,6.84960378]
[1745991530082,0.44100022,1805.4,1805.3,6.84960378]
[1745991530285,6.06862066,1805.6,1805.3,6.84960378]
[1745991530487,6.06862066,1805.6,1805.4,0.55]
[1745991531002,0.44100022,1805.5,1805.4,1.3157]
[1745991535293,0.4309847,1805.5,1805.4,1.3157]
[1745991535507,11.60620567,1805.9,1805.4,1.3157]
[1745991535679,0.30846426,1805.8,1805.4,1.37108012]
[1745991535876,0.43958336,1805.7,1805.4,1.37108012]
[1745991536706,0.43958336,1805.6,1805.4,1.37108012]
[1745991536879,6.06862066,1805.9,1805.5,1.324]
[1745991537082,6.06862066,1805.9,1805.6,0.55]
[1745991537386,9.06862066,1805.9,1805.8,0.55]
[1745991537902,9.37716464,1805.9,1805.8,0.55]
[1745991540714,0.30854398,1805.9,1805.8,1.3781]
[1745991541012,0.30854398,1805.9,1805.8,7.22900996]
[1745991541211,0.30854398,1806.5,1805.8,10.22900996]
[1745991541377,0.30854398,1806.5,1806.2,0.55]
[1745991541578,5.53605178,1806.4,1806.2,0.55]
[1745991541768,3.30854398,1806.5,1806.2,0.55]
[1745991541769,8.84434467,1806.5,1806.2,0.55]
[1745991541973,10.88918394,1806.5,1806.2,0.55]
[1745991542670,0.71268516,1806.4,1806.2,0.55]
[1745991543374,5.94009034,1806.4,1806.0,0.55]
[1745991543906,5.53621162,1806.3,1806.0,0.55]
[1745991544111,0.30819999,1806.2,1806.0,0.55]
[1745991544481,0.40414118,1806.1,1806.0,0.55]
[1745991544779,0.30819999,1806.2,1806.0,0.55]
[1745991544981,0.40414118,1806.1,1806.0,0.55]
[1745991545181,0.30819999,1806.2,1806.0,0.55]
[1745991545476,0.40414118,1806.1,1806.0,0.55]
[1745991546649,5.53618135,1806.3,1806.0,0.55]
[1745991546812,0.40414118,1806.1,1806.0,0.55]
[1745991546977,5.53618135,1806.3,1806.0,0.55]
[1745991547607,0.40414118,1806.2,1806.0,0.55]
[1745991550519,5.94062869,1806.2,1806.0,0.55]
[1745991550685,6.69912869,1806.2,1806.0,0.55]
[1745991551288,8.45479284,1806.2,1806.0,0.55]
[1745991551525,13.99146787,1806.2,1805.9,4.55]
[1745991551729,12.76793687,1806.2,1805.9,4.55]
[1745991552198,18.30466037,1806.2,1806.0,0.55]
[1745991552514,18.30466037,1806.2,1805.7,1.69850422]
[1745991552719,5.53801763,1805.8,1805.5,3.72253775]
[1745991552881,12.43727473,1805.8,1805.5,3.72253775]
[1745991553082,0.40800828,1805.7,1805.5,4.63049153]
[1745991553525,0.40800828,1805.7,1805.5,0.90795378]
[1745991553729,0.40800828,1805.7,1805.6,1.3169]
[1745991554029,6.06862066,1805.8,1805.6,1.3169]
[1745991554190,0.40793533,1805.7,1805.6,1.3169]
[1745991554391,0.40793533,1805.7,1805.6,1.7092358]
[1745991560346,0.39571238,1805.7,1805.6,1.7092358]
[1745991564734,5.53710035,1806.0,1805.7,0.55]
[1745991565030,0.30831413,1805.9,1805.7,0.55]
[1745991568032,0.30831413,1805.9,1805.8,0.55]
[1745991568532,0.30831413,1806.0,1805.8,0.55]
[1745991569219,0.30831413,1806.0,1805.8,5.112]
[1745991569421,0.30831413,1806.0,1805.9,0.5112]
[1745991572893,0.3001288,1806.0,1805.9,0.5112]
[1745991574417,6.06862066,1806.1,1805.9,1.0612]
[1745991574615,6.06862066,1806.1,1806.0,0.8318]
[1745991575027,6.06862066,1806.1,1806.0,1.3818]
[1745991575804,3.8198,1806.5,1806.1,0.55]
[1745991576006,9.35546797,1806.5,1806.1,0.91303042]
[1745991576538,5.53588663,1806.4,1806.1,0.55]
[1745991580144,0.7687,1806.3,1806.0,0.55]
[1745991580441,5.53653507,1806.2,1805.9,0.5112]
[1745991581312,5.53653507,1806.2,1806.0,0.55]
[1745991582145,6.30507719,1806.3,1806.0,0.55]
[1745991583739,11.84154188,1806.3,1806.0,0.55]
[1745991583951,13.02565316,1806.3,1806.0,0.55]
[1745991584179,7.48918847,1806.3,1806.0,0.55]
[1745991584524,5.53651943,1806.2,1806.0,0.55]
[1745991585041,0.30854008,1806.1,1806.0,0.55]
[1745991585217,0.71691582,1806.1,1806.0,0.55]
[1745991585623,0.70529726,1806.1,1806.0,0.55]
[1745991588561,0.70529726,1806.1,1806.0,1.3077]
[1745991590644,0.40837574,1806.1,1806.0,1.99220974]
[1745991590840,6.06862066,1806.4,1806.0,1.99220974]
[1745991591182,0.40822985,1806.3,1806.0,1.99220974]
[1745991591460,6.06862066,1806.4,1806.0,1.3077]
[1745991591650,0.40822985,1806.3,1806.0,1.3077]
[1745991591953,0.40822985,1806.2,1806.0,1.3077]
[1745991592256,6.06862066,1806.4,1806.0,1.3077]
[1745991592457,0.40822985,1806.3,1806.0,1.3077]
[1745991592630,6.06862066,1806.4,1806.0,1.3077]
[1745991592831,0.40822985,1806.3,1806.0,1.99220296]
[1745991593060,6.06862066,1806.4,1806.0,1.99220296]
[1745991593368,0.40822985,1806.3,1806.0,1.99220296]
[1745991593663,6.06862066,1806.4,1806.0,1.99220296]
[1745991593849,0.40822985,1806.3,1806.0,1.99220296]
[1745991594048,6.06862066,1806.4,1806.0,1.99220296]
[1745991594350,0.40822985,1806.3,1806.0,1.99220296]
[1745991594551,6.06862066,1806.4,1806.0,1.99220296]
[1745991594748,0.40822985,1806.3,1806.0,1.99220296]
[1745991595062,6.06862066,1806.4,1806.0,1.99220296]
[1745991595231,0.40822985,1806.3,1806.0,1.99220296]
[1745991595572,0.40822985,1806.2,1806.0,1.99220296]
[1745991595763,6.06862066,1806.4,1806.0,1.99220296]
[1745991596057,0.40866743,1806.3,1806.0,1.99220296]
[1745991596248,6.06862066,1806.4,1806.0,1.99220296]
[1745991596442,0.40866743,1806.3,1806.2,3.01360422]
[1745991596646,6.06862066,1806.4,1806.2,7.56360422]
[1745991596862,0.40866743,1806.3,1806.2,7.56360422]
[1745991597058,6.06862066,1806.4,1806.2,7.56360422]
[1745991597263,0.40866743,1806.3,1806.2,7.56360422]
[1745991597460,6.06862066,1806.4,1806.2,8.87362439]
[1745991597665,0.40866743,1806.3,1806.2,8.87362439]
[1745991597842,6.06862066,1806.4,1806.2,7.17512017]
[1745991598042,0.40866743,1806.3,1806.2,5.8651]
[1745991598564,6.06862066,1806.4,1806.2,5.8651]
[1745991598768,0.40866743,1806.3,1806.2,5.8651]
[1745991599061,6.06862066,1806.4,1806.2,5.8651]
[1745991599230,0.40866743,1806.3,1806.2,5.8651]
[1745991599432,6.06862066,1806.4,1806.2,6.45161]
[1745991599659,0.40866743,1806.3,1806.2,6.45161]
[1745991599828,12.35391621,1806.6,1806.2,6.45161]
[1745991600031,0.40866743,1806.5,1806.2,6.45161]
[1745991600365,0.30880815,1806.4,1806.2,6.45161]
[1745991600529,0.30880815,1806.4,1806.3,1.195161]
[1745991600733,0.71747558,1806.4,1806.3,1.195161]
[1745991601430,0.71068116,1806.4,1806.3,1.195161]
[1745991603577,0.40866743,1806.4,1806.3,1.195161]
[1745991603779,6.06862066,1806.6,1806.3,1.195161]
[1745991603980,0.40866743,1806.5,1806.3,1.195161]
[1745991604279,0.40866743,1806.5,1806.4,1.3078]
[1745991604488,0.40866743,1806.5,1806.4,2.05671048]
[1745991604978,0.818,1806.8,1806.4,2.05671048]
[1745991605180,0.40866743,1806.7,1806.4,2.05671048]
[1745991606572,6.06862066,1806.9,1806.4,2.05671048]
[1745991606774,0.41085535,1806.8,1806.4,2.05671048]
[1745991607480,0.7756,1806.7,1806.4,1.29891048]
[1745991607780,0.41435588,1806.6,1806.4,0.55]
[1745991608077,0.41435588,1806.6,1806.5,1.3715]
[1745991608283,6.84422066,1806.9,1806.5,1.3715]
[1745991608582,0.41442878,1806.8,1806.5,1.3715]
[1745991608781,0.41442878,1806.8,1806.6,0.55]
[1745991608986,0.41442878,1806.8,1806.7,1.3715]
[1745991609176,0.41442878,1806.8,1806.7,2.6924476]
[1745991610784,0.41442878,1806.8,1806.7,8.22740082]
[1745991610983,6.06862066,1807.2,1806.8,0.55]
[1745991611183,0.41442878,1807.1,1807.0,0.55]
[1745991611488,6.85542066,1807.5,1807.0,5.099]
[1745991611664,0.41442878,1807.4,1807.2,0.55]
[1745991614089,12.36050754,1807.8,1807.4,0.00685246]
[1745991614090,6.82882066,1807.8,1807.4,0.00685246]
[1745991614274,0.41887463,1807.7,1807.5,0.55]
[1745991614477,5.95096007,1807.7,1807.5,0.55]
[1745991614655,0.41887463,1807.7,1807.5,0.55]
[1745991616564,5.95076626,1807.7,1807.5,0.55]
[1745991617997,0.41887463,1807.7,1807.5,0.55]
[1745991618295,5.95079027,1807.7,1807.5,0.55]
[1745991620293,5.53219738,1807.6,1807.5,0.55]
[1745991620457,6.75206834,1807.6,1807.5,0.55]
[1745991620657,6.75206834,1807.6,1807.4,4.55485246]
[1745991620658,5.53250345,1807.5,1807.4,4.55485246]
[1745991621087,5.95837441,1807.5,1807.4,4.55485246]
[1745991621400,5.95837441,1807.5,1807.4,5.10485246]
[1745991621898,5.95837441,1807.5,1807.4,4.55485246]
[1745991622283,6.74307441,1807.5,1807.4,4.55485246]
[1745991622488,8.09344143,1807.5,1807.4,4.55485246]
[1745991622698,8.09344143,1807.5,1807.4,0.00685246]
[1745991622699,11.09344143,1807.5,1807.4,0.00685246]
[1745991622994,11.09344143,1807.5,1807.1,4.547]
[1745991622995,11.09344143,1807.5,1807.2,0.55685246]
[1745991623198,11.60156913,1807.4,1807.2,0.55685246]
[1745991623399,0.4260895,1807.3,1807.2,0.55685246]
[1745991623598,11.60156913,1807.4,1807.2,0.55685246]
[1745991623802,0.4260895,1807.3,1807.2,0.55685246]
[1745991623990,11.60156913,1807.4,1807.2,0.55685246]
[1745991624167,0.4260895,1807.3,1807.2,0.55685246]
[1745991624369,17.13462981,1807.4,1807.2,0.55685246]
[1745991624613,0.4260895,1807.3,1807.2,0.55685246]
[1745991624786,17.13462981,1807.4,1807.2,0.55685246]
[1745991625002,0.4260895,1807.3,1807.2,0.55685246]
[1745991625170,17.13462059,1807.4,1807.2,0.55685246]
[1745991625496,0.4260895,1807.3,1807.2,0.55685246]
[1745991625705,17.13462059,1807.4,1807.2,0.55685246]
[1745991625867,0.4260895,1807.3,1807.2,0.55685246]
[1745991626375,17.13462059,1807.4,1807.2,0.55685246]
[1745991626607,0.4260895,1807.3,1807.2,0.55685246]
[1745991626907,11.60156913,1807.4,1807.2,0.55685246]
[1745991627105,0.4260895,1807.3,1807.2,0.55685246]
[1745991627475,17.13463051,1807.4,1807.2,0.55685246]
[1745991627678,0.4260895,1807.3,1807.2,0.55685246]
[1745991627878,17.13463051,1807.4,1807.2,0.55685246]
[1745991628077,0.4260895,1807.3,1807.2,0.55685246]
[1745991628274,11.60156913,1807.4,1807.2,0.55685246]
[1745991628499,0.4260895,1807.3,1807.2,0.55685246]
[1745991628714,17.13463777,1807.4,1807.2,0.55685246]
[1745991628893,0.4260895,1807.3,1807.2,0.55685246]
[1745991629075,17.13463777,1807.4,1807.2,0.55685246]
[1745991629270,0.4260895,1807.3,1807.2,0.55685246]
[1745991629606,5.95920519,1807.3,1807.2,0.55685246]
[1745991631811,6.10162515,1807.3,1807.2,0.55685246]
[1745991633377,6.40941754,1807.3,1807.2,0.55685246]
[1745991637516,0.87630185,1807.3,1807.2,0.55685246]
[1745991638016,6.40941754,1807.3,1807.2,0.00685246]
[1745991638177,17.54402944,1807.3,1807.2,0.00685246]
[1745991638383,17.54402944,1807.3,1807.2,1e-08]
[1745991640314,18.1570441,1807.3,1807.2,1e-08]
[1745991643097,17.54402944,1807.3,1807.2,1e-08]
[1745991667161,5.53464688,1806.8,1806.7,4.564]
[1745991667453,5.53495322,1806.7,1806.6,0.55]
[1745991667853,5.84274561,1806.7,1806.6,0.55]
[1745991668019,6.40666463,1806.7,1806.6,0.55]
[1745991674060,0.87171141,1806.7,1806.6,0.55]
[1745991674364,0.87171141,1806.7,1806.6,1.3622]
[1745991675857,0.87171141,1806.7,1806.6,6.8974596]
[1745991676160,0.87171141,1806.7,1806.6,7.75705598]
[1745991676366,0.87171141,1806.7,1806.6,2.22179638]
[1745991676573,0.56391902,1806.7,1806.6,7.75705598]
[1745991676871,5.53376022,1807.1,1806.6,1.40959638]
[1745991677076,5.53376022,1807.1,1807.0,0.55]
[1745991677376,5.8420743,1807.1,1807.0,0.55]
[1745991677776,0.30831408,1807.1,1807.0,0.55]
[1745991678651,5.84204215,1807.1,1807.0,0.55]
[1745991679841,0.30831408,1807.1,1807.0,0.55]
[1745991682158,5.53430279,1807.0,1806.8,4.571]
[1745991682791,5.53464688,1806.8,1806.5,5.3283]
[1745991682968,5.53464688,1806.8,1806.6,0.55]
[1745991683478,11.3772352,1806.9,1806.6,0.55]
[1745991683690,0.30831408,1806.7,1806.6,0.55]
[1745991690299,0.8712133,1806.7,1806.6,0.55]
[1745991701163,0.8712133,1806.7,1806.6,1.3361]
[1745991704769,0.8712133,1806.7,1806.6,0.55]
[1745991708784,6.40616652,1806.7,1806.6,0.55]
[1745991709900,0.8712133,1806.7,1806.6,0.55]
[1745991721807,2.11866144,1806.7,1806.6,0.55]
[1745991721978,2.11866144,1806.7,1806.5,0.55]
[1745991721984,5.53537269,1806.6,1806.5,0.55]
[1745991722174,6.09637691,1806.6,1806.5,0.55]
[1745991722370,6.40469099,1806.6,1806.3,0.55]
[1745991722622,12.47331164,1806.6,1806.3,5.101]
[1745991723205,0.30831408,1806.5,1806.3,5.101]
[1745991723694,0.56100422,1806.4,1806.3,5.101]
[1745991724240,0.8693183,1806.4,1806.3,5.101]
[1745991725839,0.8693183,1806.4,1806.2,4.48673775]
[1745991726138,0.30831408,1806.3,1806.2,4.27253775]
[1745991726305,0.86647543,1806.3,1806.2,4.27253775]
[1745991728223,0.86647543,1806.3,1806.2,0.55]
[1745991728613,0.86647543,1806.3,1806.2,3.59973422]
[1745991728827,0.86647543,1806.3,1806.2,9.13621965]
[1745991729512,0.55816135,1806.3,1806.2,9.13621965]
[1745991729697,6.06862065,1806.6,1806.4,0.7629]
[1745991729892,0.5554638,1806.5,1806.4,3.01140422]
[1745991730109,0.5554638,1806.5,1806.4,3.36754464]
[1745991732001,0.5554638,1806.5,1806.4,7.91954464]
[1745991733543,0.5554638,1806.5,1806.4,5.8649]
[1745991733757,6.09102981,1806.5,1806.2,4.52703775]
[1745991733914,6.39923726,1806.5,1806.2,8.27453775]
[1745991734102,6.39923726,1806.5,1806.3,0.55]
[1745991734302,7.64602305,1806.5,1806.3,0.55]
[1745991734720,8.42522305,1806.5,1806.3,0.55]
[1745991734950,0.30807364,1806.4,1806.3,0.55]
[1745991735259,0.8655788,1806.4,1806.3,0.55]
[1745991737164,6.40166668,1806.4,1806.2,5.102]
[1745991737363,7.79799875,1806.4,1806.2,5.102]
[1745991738133,0.30807364,1806.3,1806.2,5.102]
[1745991738526,0.8655788,1806.3,1806.2,5.102]
[1745991740467,6.93419945,1806.3,1806.2,5.102]
[1745991752193,6.93419945,1806.3,1806.2,0.55]
[1745991756199,6.62612581,1806.3,1806.2,1.3751]
[1745991756405,6.62612581,1806.3,1806.2,1.68246042]
[1745991758016,0.55750516,1806.3,1806.2,1.68246042]
[1745991758508,6.06862065,1806.6,1806.3,0.55]
[1745991761318,0.55794266,1806.5,1806.3,0.55]
[1745991765429,0.30795922,1806.4,1806.3,0.55]
[1745991766024,0.86590188,1806.4,1806.3,0.55]
[1745991777147,0.86590188,1806.4,1806.3,3.64325026]
[1745991777337,0.86590188,1806.4,1806.3,9.17942918]
[1745991777517,0.86590188,1806.4,1806.3,9.2347835]
[1745991777718,0.55794266,1806.4,1806.3,9.2347835]
[1745991778327,6.06862065,1806.6,1806.5,0.55]
[1745991779248,5.53414972,1807.0,1806.5,2.04353657]
[1745991779493,13.30025016,1807.3,1807.0,0.55]
[1745991779494,6.06862065,1807.3,1807.0,0.55]
[1745991780318,0.86503376,1807.2,1807.0,0.55]
[1745991781317,0.30803883,1807.1,1807.0,0.55]
[1745991781857,0.86503376,1807.1,1807.0,0.55]
[1745991783975,0.55699493,1807.1,1807.0,0.55]
[1745991784379,11.60185152,1807.3,1807.0,0.55]
[1745991784534,0.56114976,1807.1,1807.0,0.55]
[1745991784737,11.60185152,1807.3,1807.0,0.55]
[1745991784967,0.56114976,1807.1,1807.0,0.55]
[1745991785287,11.60185152,1807.3,1807.0,0.55]
[1745991785466,0.56114976,1807.1,1807.0,0.55]
[1745991785665,11.60185152,1807.3,1807.0,0.55]
[1745991785974,0.56114976,1807.1,1807.0,0.55]
[1745991786140,0.30746018,1807.2,1807.0,0.55]
[1745991786341,0.56114976,1807.1,1807.0,0.55]
[1745991787548,6.35103841,1807.2,1806.7,0.8118]
[1745991787882,6.35185567,1807.0,1806.5,2.51030422]
[1745991788067,6.06862065,1806.9,1806.6,4.55]
[1745991788670,0.56114976,1806.8,1806.7,0.55]
[1745991788872,0.56114976,1806.8,1806.6,4.55]
[1745991789235,0.56114976,1806.8,1806.7,0.55]
[1745991798149,1.31704976,1806.8,1806.6,4.55]
[1745991798467,1.6244458,1806.8,1806.6,4.55]
[1745991798869,7.15916205,1806.8,1806.6,4.55]
[1745991799083,6.06862065,1806.7,1806.6,4.55]
[1745991799464,6.62802133,1806.7,1806.6,4.55]
[1745991800160,6.62802133,1806.7,1806.6,5.1]
[1745991800485,6.62802133,1806.7,1806.6,6.79850422]
[1745991800851,6.62802133,1806.7,1806.6,7.55775464]
[1745991811575,6.06862065,1806.7,1806.6,7.55775464]
[1745991811771,6.62940633,1806.7,1806.6,7.55775464]
[1745991814907,6.62940633,1806.7,1806.6,13.09301424]
[1745991815118,6.62940633,1806.7,1806.6,7.55775464]
[1745991816098,6.06862065,1806.7,1806.6,7.55775464]
[1745991816420,6.06862065,1806.7,1806.6,13.88771424]
[1745991816590,6.60683304,1806.7,1806.6,13.88771424]
[1745991816799,6.06862065,1807.2,1806.7,0.55]
[1745991817121,0.53879646,1807.1,1806.7,2.49229738]
[1745991817626,0.53879646,1807.1,1806.8,0.7548]
[1745991817930,0.30826644,1807.0,1806.8,0.7548]
[1745991818299,0.53908848,1806.9,1806.8,1.3048]
[1745991819223,0.53908848,1806.9,1806.8,0.55]
[1745991819395,0.8293,1807.0,1806.8,0.55]
[1745991819596,0.53908848,1806.9,1806.7,4.556]
[1745991819995,0.30813838,1806.8,1806.7,4.556]
[1745991820319,0.30813838,1806.8,1806.7,5.106]
[1745991820521,0.84715386,1806.8,1806.7,5.106]
[1745991820726,0.30813838,1806.8,1806.7,5.106]
[1745991820920,0.84671582,1806.8,1806.7,5.106]
[1745991821087,0.8293,1807.0,1806.8,0.55]
[1745991821287,0.53857744,1806.9,1806.8,0.55]
[1745991822035,0.84674251,1806.9,1806.8,0.55]
[1745991829548,0.84674251,1806.9,1806.7,4.556]
[1745991830145,0.30816507,1806.8,1806.7,5.106]
[1745991830544,1.66978363,1806.8,1806.7,5.106]
[1745991834253,7.73840428,1806.8,1806.7,5.106]
[1745991837462,6.91660428,1806.8,1806.7,5.106]
[1745991838257,6.60843921,1806.8,1806.7,5.106]
[1745991839267,6.91682871,1806.8,1806.7,5.106]
[1745991843471,5.53540868,1806.6,1806.4,3.72253775]
[1745991843667,0.53857737,1806.5,1806.4,3.72253775]
[1745991843964,12.96986403,1806.5,1806.4,3.72253775]
[1745991844170,13.27825353,1806.5,1806.4,3.72253775]
[1745991845334,13.27825353,1806.5,1806.3,6.05800414]
[1745991846273,0.3083895,1806.4,1806.3,6.05800414]
[1745991846433,0.84579866,1806.4,1806.3,6.05800414]
[1745991848772,0.84579866,1806.4,1806.3,2.33546639]
[1745991849074,6.91441931,1806.4,1806.3,2.33546639]
[1745991852065,16.77800233,1806.4,1806.3,2.33546639]
[1745991852256,17.55010233,1806.4,1806.3,2.33546639]
[1745991870795,5.53740517,1805.9,1805.8,4.553]
[1745991870959,6.06862065,1805.9,1805.8,4.553]
[1745991871164,6.59675339,1805.9,1805.8,4.553]
[1745991871355,6.59675339,1805.9,1805.8,5.103]
[1745991871566,6.59675339,1805.9,1805.8,8.20694422]
[1745991872006,6.06862065,1805.9,1805.8,8.20694422]
[1745991872162,6.59675339,1805.9,1805.8,8.20694422]
[1745991872497,6.90541318,1805.9,1805.8,8.20694422]
[1745991876517,6.59675339,1805.9,1805.8,8.20694422]
[1745991882214,6.59675339,1805.9,1805.8,13.74465603]
[1745991882719,6.59675339,1805.9,1805.8,8.20694422]
[1745991882935,6.06862065,1805.9,1805.8,8.20694422]
[1745991883316,6.59594964,1805.9,1805.8,8.20694422]
[1745991884668,0.52732899,1805.9,1805.8,8.20694422]
[1745991884939,11.60452595,1806.4,1805.9,0.55]
[1745991885082,11.60452595,1806.4,1805.9,1.9794656]
[1745991885285,0.52784048,1806.3,1805.9,1.9794656]
[1745991885484,11.60452595,1806.4,1805.9,1.9794656]
[1745991885691,0.52784048,1806.3,1805.9,1.9794656]
[1745991885896,0.30859128,1806.3,1805.9,1.9794656]
[1745991886092,0.52784048,1806.2,1805.9,1.9794656]
[1745991886620,0.30859128,1806.1,1805.9,1.9794656]
[1745991887095,0.52784048,1806.0,1805.9,1.9794656]
[1745991888124,6.30159209,1806.3,1805.9,1.9794656]
[1745991888426,0.83638915,1806.2,1805.9,0.55]
[1745991889124,6.37297467,1806.2,1805.9,0.55]
[1745991889319,5.84544666,1806.1,1805.9,0.55]
[1745991889723,0.52784048,1806.0,1805.9,0.55]
[1745991890225,0.83638915,1806.0,1805.9,0.55]
[1745991891425,0.83638915,1806.0,1805.8,4.553]
[1745991891633,0.30854867,1805.9,1805.8,5.103]
[1745991892428,0.83638915,1805.9,1805.8,5.103]
[1745991892604,0.30854867,1805.9,1805.8,5.103]
[1745991893104,0.83638915,1805.9,1805.8,5.103]
[1745991895025,0.83638915,1805.9,1805.8,4.553]
[1745991895228,13.13305196,1805.9,1805.6,4.553]
[1745991895441,12.44255098,1805.9,1805.6,4.553]
[1745991895937,0.30854867,1805.8,1805.6,4.553]
[1745991896141,0.52732898,1805.7,1805.6,5.103]
[1745991896911,0.52732898,1805.7,1805.6,5.8564]
[1745991897113,6.06862065,1805.9,1805.6,8.03800483]
[1745991897348,6.06862065,1805.9,1805.8,0.55]
[1745991897711,6.37690299,1805.9,1805.8,0.55]
[1745991900257,6.90423197,1805.9,1805.8,0.55]
[1745991901545,6.90423197,1805.9,1805.8,1.3827]
[1745991901750,6.37690299,1805.9,1805.8,1.69082042]
[1745991902045,6.90423197,1805.9,1805.8,1.69082042]
[1745991902615,6.59594963,1805.9,1805.8,1.69082042]
[1745991904673,0.52732898,1805.9,1805.8,1.69082042]
[1745991904969,6.06862065,1806.2,1805.8,1.69082042]
[1745991905172,0.52637903,1805.9,1805.8,1.69082042]
[1745991905470,6.06862065,1806.2,1805.8,1.69082042]
[1745991905665,0.52637903,1805.9,1805.8,1.69082042]
[1745991905858,6.06862065,1806.2,1805.8,6.24382042]
[1745991906055,0.52637903,1805.9,1805.8,6.24382042]
[1745991906270,6.06862065,1806.2,1806.0,1.3309]
[1745991908967,6.06862065,1806.2,1806.0,0.55]
[1745991909173,0.7537,1806.1,1805.8,4.553]
[1745991909467,5.53771181,1805.8,1805.7,8.27553775]
[1745991910342,5.53771181,1805.8,1805.7,4.553]
[1745991910742,5.84581214,1805.8,1805.7,4.553]
[1745991913293,0.30810033,1805.8,1805.7,4.553]
[1745991913450,6.37672098,1805.8,1805.7,4.553]
[1745991915160,6.90207657,1805.8,1805.7,4.553]
[1745991915363,12.43978838,1805.8,1805.7,4.553]
[1745991918595,14.3128968,1805.8,1805.7,4.553]
[1745991919187,6.31022328,1805.7,1805.5,0.55]
[1745991919355,12.37884393,1805.7,1805.5,0.55]
[1745991919559,0.8305325,1805.6,1805.5,0.55]
[1745991921287,0.52243217,1805.6,1805.5,0.55]
[1745991924984,6.06075738,1805.6,1805.4,4.553]
[1745991926401,5.53863195,1805.5,1805.4,5.103]
[1745991926566,5.53863195,1805.5,1805.4,4.553]
[1745991926992,6.06106412,1805.5,1805.4,4.553]
[1745991928403,0.8275,1805.4,1805.2,5.103]
[1745991928708,6.36661608,1805.4,1805.2,4.553]
[1745991928911,0.5189229,1805.3,1805.2,4.553]
[1745991929105,6.58754355,1805.3,1805.2,4.553]
[1745991929307,6.06862065,1805.3,1805.2,4.553]
[1745991929473,6.58754355,1805.3,1805.2,4.553]
[1745991940510,6.89541718,1805.3,1805.2,4.553]
[1745991941098,6.58754355,1805.3,1805.2,4.553]
[1745991941945,6.58754355,1805.3,1805.1,0.05]
[1745991942103,0.30796781,1805.2,1805.1,0.05]
[1745991942431,0.82367305,1805.2,1805.1,0.05]
[1745991950315,1.51290242,1805.2,1805.1,0.05]
[1745991952956,7.83405482,1805.2,1805.1,0.05]
[1745991953450,2.29450242,1805.2,1805.1,0.05]
[1745991953768,1.51290242,1805.2,1805.1,0.05]
[1745991955455,7.05245482,1805.2,1805.1,0.05]
[1745991956647,1.51290242,1805.2,1805.1,0.05]
[1745991957454,7.58152307,1805.2,1805.1,0.05]
[1745991959646,6.8922937,1805.2,1805.1,0.8472]
[1745991959847,6.8922937,1805.2,1805.1,0.05]
[1745991960853,12.4318461,1805.2,1805.1,0.05]
[1745991961354,6.8922937,1805.2,1805.1,0.05]
[1745991961751,12.4318461,1805.2,1805.1,0.05]
[1745991961955,8.77231148,1805.2,1805.1,0.05]
[1745991962461,14.31186388,1805.2,1805.1,0.05]
[1745991963154,15.12886388,1805.2,1805.1,0.05]
[1745991964359,6.35808716,1804.7,1804.6,3.73537881]
[1745991964517,11.97012371,1804.7,1804.6,3.73537881]
[1745991964718,13.41157902,1804.7,1804.6,3.73537881]
[1745991964922,6.11940147,1804.7,1804.6,3.73537881]
[1745991965121,6.42736928,1804.7,1804.6,3.73537881]
[1745991965417,11.96845644,1804.7,1804.6,3.73537881]
[1745991965621,11.96845644,1804.7,1804.6,4.28537881]
[1745991965622,6.42736928,1804.7,1804.6,4.28537881]
[1745991966048,6.42736928,1804.7,1804.6,0.55]
[1745991966256,7.62418982,1804.7,1804.4,8.28937881]
[1745991966562,7.62418982,1804.7,1804.4,3.73537881]